fUST/lending_fUST_20250509
["ID","MTS","AMOUNT","RATE_DAILY","PERIOD"]
[360294969,1746720411222,-300.0,0.00010505,2]
[360294970,1746720411244,-4538.32691045,0.00010506,2]
[360295013,1746720632052,-5776.85892235,0.00010506,2]
[360295015,1746720632062,-400.0,0.00010958,2]
[360295017,1746720632071,-400.0,0.00011232,2]
[360295018,1746720632081,-198.13690806,0.00011441,2]
[360295021,1746720632090,-300.0,0.00011504,2]
[360295023,1746720632100,-169.41469658,0.00011505,2]
[360295024,1746720632109,-500.0,0.00011505,2]
[360295027,1746720632120,-500.0,0.00011505,2]
[360295029,1746720632130,-500.0,0.00011505,2]
[360295031,1746720632139,-500.0,0.00011505,2]
[360295033,1746720632149,-500.0,0.00011505,2]
[360295035,1746720632158,-500.0,0.00011505,2]
[360295038,1746720632168,-500.0,0.00011505,2]
[360295041,1746720632178,-500.0,0.00011505,2]
[360295043,1746720632187,-500.0,0.00011505,2]
[360295045,1746720632196,-618.77296562,0.00011505,2]
[360295047,1746720632206,-500.0,0.00011505,2]
[360295049,1746720632215,-207.3481111,0.00011505,2]
[360295051,1746720632225,-500.0,0.00011505,2]
[360295053,1746720632234,-300.0,0.00011505,2]
[360295055,1746720632244,-500.0,0.00011505,2]
[360295057,1746720632254,-500.0,0.00011505,2]
[360295058,1746720632263,-500.0,0.00011505,2]
[360295061,1746720632273,-500.0,0.00011505,2]
[360295063,1746720632283,-500.0,0.00011505,2]
[360295065,1746720632293,-1104.391503,0.00011505,2]
[360295067,1746720632302,-400.0,0.00011505,2]
[360295069,1746720632312,-400.0,0.00011505,2]
[360295071,1746720632322,-400.0,0.00011505,2]
[360295073,1746720632330,-400.0,0.00011505,2]
[360295075,1746720632342,-400.0,0.00011505,2]
[360295077,1746720632351,-466.534856,0.00011505,2]
[360295079,1746720632360,-520.53,0.00011505,2]
[360295081,1746720632370,-400.0,0.00011505,2]
[360295083,1746720632379,-400.0,0.00011505,2]
[360295085,1746720632389,-400.0,0.00011505,2]
[360295087,1746720632398,-400.0,0.00011505,2]
[360295089,1746720632407,-485.88739106,0.00011505,2]
[360295090,1746720632417,-618.48,0.00011505,2]
[360295092,1746720632427,-400.0,0.00011506,2]
[360295095,1746720632437,-315.64909387,0.00011506,2]
[360295097,1746720632447,-439.77353157,0.00011506,2]
[360295098,1746720632456,-326.15635363,0.00011506,2]
[360295100,1746720632465,-481.01467842,0.00011506,2]
[360295102,1746720632475,-411.89955791,0.00011506,2]
[360295104,1746720632486,-410.77495671,0.00011506,2]
[360295106,1746720632495,-400.0,0.00011506,2]
[360295108,1746720632505,-402.3381913,0.00011506,2]
[360295110,1746720632514,-400.0,0.00011506,2]
[360295112,1746720632523,-400.0,0.00011506,2]
[360295114,1746720632533,-400.0,0.00011506,2]
[360295117,1746720632546,-400.0,0.00011506,2]
[360295119,1746720632563,-400.0,0.00011506,2]
[360295121,1746720632575,-400.0,0.00011506,2]
[360295124,1746720632588,-400.0,0.00011506,2]
[360295126,1746720632599,-177.02470605,0.00011506,2]
[360295128,1746720632612,-400.0,0.00011506,2]
[360295130,1746720632622,-400.0,0.00011506,2]
[360295132,1746720632634,-400.0,0.00011506,2]
[360295135,1746720632648,-210.91228379,0.00011506,2]
[360295137,1746720632661,-400.0,0.00011506,2]
[360295139,1746720632672,-400.0,0.00011507,2]
[360295141,1746720632684,-410.83318434,0.00011507,2]
[360295144,1746720632696,-409.19932202,0.00011507,2]
[360295146,1746720632708,-400.0,0.00011507,2]
[360295148,1746720632720,-214.84523283,0.00011507,2]
[360295150,1746720632734,-406.21651518,0.00011507,2]
[360295152,1746720632746,-400.0,0.00011507,2]
[360295155,1746720632757,-484.28,0.00011507,2]
[360295157,1746720632769,-403.60980109,0.00011507,2]
[360295159,1746720632782,-400.0,0.00011507,2]
[360295162,1746720632793,-400.0,0.00011507,2]
[360295164,1746720632805,-400.0,0.00011507,2]
[360295166,1746720632816,-400.0,0.00011507,2]
[360295168,1746720632827,-400.0,0.00011507,2]
[360295170,1746720632838,-400.0,0.00011507,2]
[360295173,1746720632850,-400.0,0.00011507,2]
[360295175,1746720632861,-400.0,0.00011507,2]
[360295177,1746720632872,-500.0,0.00011507,2]
[360295179,1746720632884,-345.7563018,0.00011507,2]
[360295181,1746720632895,-400.0,0.00011507,2]
[360295183,1746720632907,-160.0,0.00011541,2]
[360295185,1746720632918,-10708.36093572,0.00011541,2]
[360295498,1746720638100,-1906.87412533,0.00011541,2]
[360295499,1746720638113,-160.0,0.00011541,2]
[360295500,1746720638124,-422.07246323,0.00011541,2]
[360295501,1746720638136,-160.0,0.00011541,2]
[360295502,1746720638147,-160.0,0.00011541,2]
[360295504,1746720638158,-842.21467215,0.00011541,2]
[360295506,1746720638170,-212.10144473,0.00011541,2]
[360295508,1746720638181,-160.0,0.00011541,2]
[360295510,1746720638192,-160.0,0.00011541,2]
[360295512,1746720638203,-506.0,0.00011779,2]
[360295514,1746720638214,-184.08,0.00011779,2]
[360295517,1746720638224,-400.0,0.00011779,2]
[360295518,1746720638238,-400.0,0.00011779,2]
[360295521,1746720638250,-520.53,0.00011779,2]
[360295522,1746720638260,-400.0,0.00011779,2]
[360295525,1746720638272,-400.0,0.00011779,2]
[360295526,1746720638283,-400.0,0.00011779,2]
[360295527,1746720638294,-618.48,0.00011779,2]
[360295528,1746720638305,-400.0,0.0001178,2]
[360295529,1746720638315,-400.0,0.0001178,2]
[360295530,1746720638326,-400.0,0.0001178,2]
[360295531,1746720638337,-410.09596599,0.0001178,2]
[360295532,1746720638348,-400.0,0.0001178,2]
[360295533,1746720638360,-400.0,0.0001178,2]
[360295534,1746720638370,-400.0,0.0001178,2]
[360295535,1746720638382,-400.0,0.0001178,2]
[360295536,1746720638393,-400.0,0.00011781,2]
[360295537,1746720638404,-400.0,0.00011781,2]
[360295538,1746720638415,-400.0,0.00011781,2]
[360295539,1746720638426,-400.0,0.00011781,2]
[360295541,1746720638437,-269.30836273,0.00012052,2]
[360295543,1746720638449,-500.0,0.00012052,2]
[360295545,1746720638460,-500.0,0.00012052,2]
[360295547,1746720638471,-500.0,0.00012052,2]
[360295549,1746720638487,-157.61476414,0.00012052,2]
[360295550,1746720638498,-500.0,0.00012052,2]
[360295551,1746720638509,-238.25683545,0.00012052,2]
[360295552,1746720638520,-400.0,0.00012053,2]
[360295553,1746720638531,-400.0,0.00012053,2]
[360295554,1746720638542,-520.53,0.00012053,2]
[360295555,1746720638552,-400.0,0.00012053,2]
[360295556,1746720638564,-400.0,0.00012053,2]
[360295557,1746720638574,-400.0,0.00012053,2]
[360295558,1746720638585,-618.48,0.00012053,2]
[360295559,1746720638596,-339.97133836,0.00012054,2]
[360295560,1746720638607,-400.0,0.00012054,2]
[360295561,1746720638617,-400.0,0.00012054,2]
[360295562,1746720638628,-386.4,0.00012054,2]
[360295563,1746720638639,-400.0,0.00012054,2]
[360295564,1746720638649,-400.0,0.00012054,2]
[360295565,1746720638660,-400.0,0.00012055,2]
[360295566,1746720638670,-400.0,0.00012055,2]
[360295567,1746720638681,-400.0,0.00012055,2]
[360295568,1746720638692,-321.35378132,0.00012061,2]
[360295569,1746720638701,-500.0,0.00012091,2]
[360295570,1746720638711,-500.0,0.00012092,2]
[360295571,1746720638720,-7162.45225047,0.000121,2]
[360295572,1746720638729,-7162.45225045,0.00012176,2]
[360295573,1746720638740,-157.22455448,0.000122,2]
[360295574,1746720638772,-342.77544552,0.000122,2]
[360295575,1746720638781,-5.50455448,0.000122,2]
[360295576,1746720638792,-494.49544552,0.000122,2]
[360295577,1746720638802,-500.0,0.000122,2]
[360295578,1746720639022,-509.6932751,0.000122,2]
[360295579,1746720639043,-500.0,0.000122,2]
[360295580,1746720639057,-500.0,0.00012254,2]
[360295581,1746720639067,-421.25127938,0.00012254,2]
[360295668,1746720643601,-78.74872062,0.00012254,2]
[360295671,1746720643610,-458.84315832,0.00012254,2]
[360295673,1746720643622,-41.15684168,0.00012254,2]
[360295675,1746720643631,-500.0,0.00012254,2]
[360295676,1746720643641,-512.47820784,0.00012254,2]
[360295677,1746720643650,-383.00495047,0.00012254,2]
[360295687,1746720646119,-116.99504953,0.00012254,2]
[360295689,1746720646129,-500.0,0.00012254,2]
[360295690,1746720646139,-500.0,0.00012254,2]
[360295691,1746720646148,-400.0,0.00012327,2]
[360295692,1746720646158,-400.0,0.00012327,2]
[360295694,1746720646168,-520.53,0.00012327,2]
[360295696,1746720646178,-158.76457411,0.00012327,2]
[360295706,1746720646269,-241.23542589,0.00012327,2]
[360295707,1746720646279,-400.0,0.00012327,2]
[360295710,1746720646289,-400.0,0.00012327,2]
[360295711,1746720646299,-618.48,0.00012327,2]
[360295713,1746720646308,-400.0,0.00012328,2]
[360295715,1746720646317,-88.25457411,0.00012328,2]
[360295726,1746720646415,-311.74542589,0.00012328,2]
[360295729,1746720646425,-400.0,0.00012328,2]
[360295732,1746720646435,-400.0,0.00012328,2]
[360295734,1746720646445,-909.36,0.00012329,2]
[360295736,1746720646455,-757.8,0.00012329,2]
[360295738,1746720646464,-631.5,0.00012329,2]
[360295739,1746720646474,-526.25,0.00012329,2]
[360295741,1746720646483,-438.54,0.00012329,2]
[360295743,1746720646494,-365.45,0.00012329,2]
[360295745,1746720646504,-304.54,0.00012329,2]
[360295747,1746720646513,-253.79,0.00012329,2]
[360295749,1746720646523,-211.49,0.00012329,2]
[360295751,1746720646532,-176.24,0.00012329,2]
[360295753,1746720646542,-881.23,0.00012329,2]
[360295755,1746720646552,-400.0,0.00012329,2]
[360295756,1746720646563,-400.0,0.00012329,2]
[360295758,1746720646573,-400.0,0.00012329,2]
[360295760,1746720646583,-7162.45225045,0.00012452,2]
[360295762,1746720646592,-400.0,0.00012601,2]
[360295764,1746720646602,-400.0,0.00012601,2]
[360295767,1746720646613,-520.53,0.00012601,2]
[360295769,1746720646622,-400.0,0.00012601,2]
[360295770,1746720646632,-485.17318548,0.00012601,2]
[360295773,1746720646643,-71.14912957,0.00012601,2]
[360295941,1746721041974,150.0,0.0001,2]
[360296048,1746721832201,-280.0,0.00010501,2]
[360296049,1746721832212,-300.0,0.00010502,2]
[360296050,1746721832221,-300.0,0.00010502,2]
[360296051,1746721832231,-300.0,0.00010502,2]
[360296052,1746721832240,-1200.0,0.00010502,2]
[360296053,1746721832249,-300.0,0.00010502,2]
[360296054,1746721832258,-10081.2655648,0.00010503,2]
[360296055,1746721832268,-776.3214349,0.00010587,2]
[360296056,1746721832278,-247.0284256,0.00010959,2]
[360296057,1746721832288,-155.91146257,0.00011402,2]
[360296058,1746721832297,-400.0,0.00011501,2]
[360296059,1746721832307,-500.0,0.00011501,2]
[360296060,1746721832317,-188.51585391,0.00011501,2]
[360296061,1746721832326,-500.0,0.00011501,2]
[360296062,1746721832335,-166.77978482,0.00011501,2]
[360296063,1746721832345,-647.61480535,0.00011501,2]
[360296064,1746721832354,-500.0,0.00011501,2]
[360296065,1746721832364,-19339.27392515,0.00011502,2]
[360296133,1746721843345,-500.0,0.00011501,2]
[360296135,1746721843355,-465.99696525,0.00011501,2]
[360296137,1746721843364,-500.0,0.00011501,2]
[360296139,1746721843374,-500.0,0.00011501,2]
[360296141,1746721843383,-500.0,0.00011501,2]
[360296142,1746721843393,-500.0,0.00011501,2]
[360296143,1746721843402,-478.88243922,0.00011501,2]
[360296145,1746721843412,-187.0590128,0.00011501,2]
[360296147,1746721843421,-103.43483285,0.00011501,2]
[360296158,1746721846264,-396.56516715,0.00011501,2]
[360296159,1746721846279,-500.0,0.00011501,2]
[360296160,1746721846289,-500.0,0.00011501,2]
[360296161,1746721846299,-500.0,0.00011501,2]
[360296162,1746721846309,-500.0,0.00011501,2]
[360296163,1746721846320,-439.78942211,0.00011501,2]
[360296164,1746721846329,-422.89641652,0.00011501,2]
[360296165,1746721846369,-77.10358348,0.00011501,2]
[360296166,1746721846379,-500.0,0.00011501,2]
[360296167,1746721846389,-500.0,0.00011501,2]
[360296168,1746721846398,-500.0,0.00011501,2]
[360296169,1746721846407,-529.35318544,0.00011501,2]
[360296170,1746721846417,-500.0,0.00011501,2]
[360296172,1746721846427,-500.0,0.00011501,2]
[360296174,1746721846439,-500.0,0.00011501,2]
[360296175,1746721846449,-578.36811377,0.00011501,2]
[360296177,1746721846459,-500.0,0.00011501,2]
[360296178,1746721846473,-385.4263625,0.00011501,2]
[360296179,1746721846485,-114.5736375,0.00011501,2]
[360296180,1746721846495,-500.0,0.00011501,2]
[360296181,1746721846505,-500.0,0.00011501,2]
[360296182,1746721846516,-500.0,0.00011501,2]
[360296183,1746721846525,-500.0,0.00011501,2]
[360296184,1746721846535,-500.0,0.00011501,2]
[360296185,1746721846544,-500.0,0.00011501,2]
[360296186,1746721846553,-400.0,0.00011501,2]
[360296187,1746721846563,-400.0,0.00011501,2]
[360296188,1746721846572,-6967.20298113,0.00011502,2]
[360296275,1746722687978,-200.0,0.00020952,120]
[360296276,1746722688122,-200.0,0.00022241,120]
[360296277,1746722688149,-222.27790437,0.00024,120]
[360296310,1746723038799,-1200.0,0.0001049,2]
[360296311,1746723038809,-152.0,0.0001049,2]
[360296312,1746723038819,-300.0,0.0001049,2]
[360296313,1746723038828,-300.0,0.0001049,2]
[360296314,1746723038838,-7424.79676761,0.00010491,2]
[360296381,1746723043726,-2179.90100919,0.00010491,2]
[360296382,1746723043735,-539.15228433,0.00011187,2]
[360296383,1746723043745,-396.2738161,0.00011396,2]
[360296384,1746723043754,-20789.0,0.000114,2]
[360296385,1746723043763,-2287.82,0.0001147,2]
[360296386,1746723043772,-60817.13958215,0.0001147,3]
[360296387,1746723043781,-25821.68671394,0.0001147,2]
[360296388,1746723043790,-215.53215801,0.00011471,2]
[360296389,1746723043799,-500.0,0.00011471,2]
[360296390,1746723043808,-386.54249325,0.00011471,2]
[360296391,1746723043817,-409.67322365,0.00011471,2]
[360296392,1746723043826,-230.92979042,0.00011471,2]
[360296393,1746723043835,-392.15035394,0.00011471,2]
[360296394,1746723043844,-500.0,0.00011471,2]
[360296395,1746723043854,-1106.87,0.00011471,2]
[360296396,1746723043863,-400.0,0.00011471,2]
[360296398,1746723043873,-400.0,0.00011471,2]
[360296399,1746723043883,-400.0,0.00011471,2]
[360296400,1746723043892,-400.0,0.00011471,2]
[360296401,1746723043901,-400.0,0.00011471,2]
[360296402,1746723043910,-400.0,0.00011471,2]
[360296403,1746723043920,-400.0,0.00011471,2]
[360296404,1746723043929,-400.0,0.00011471,2]
[360296405,1746723043945,-400.0,0.00011471,2]
[360296406,1746723043960,-400.0,0.00011471,2]
[360296407,1746723043970,-400.0,0.00011471,2]
[360296408,1746723043979,-746.03,0.00011471,2]
[360296409,1746723043991,-400.0,0.00011471,2]
[360296410,1746723044001,-400.0,0.00011471,2]
[360296411,1746723044010,-400.0,0.00011471,2]
[360296412,1746723044020,-400.0,0.00011471,2]
[360296413,1746723044031,-400.0,0.00011471,2]
[360296414,1746723044040,-1633.58,0.00011471,2]
[360296415,1746723044050,-400.0,0.00011471,2]
[360296416,1746723044059,-400.0,0.00011471,2]
[360296417,1746723044069,-210.67578459,0.00011471,2]
[360296418,1746723044079,-400.0,0.00011471,2]
[360296419,1746723044088,-523.05379956,0.00011471,2]
[360296420,1746723044098,-400.0,0.00011471,2]
[360296421,1746723044108,-400.0,0.00011471,2]
[360296422,1746723044117,-400.0,0.00011471,2]
[360296423,1746723044127,-400.0,0.00011471,2]
[360296424,1746723044138,-483.65,0.00011471,2]
[360296425,1746723044148,-400.0,0.00011471,2]
[360296426,1746723044158,-400.0,0.00011471,2]
[360296427,1746723044170,-400.0,0.00011471,2]
[360296428,1746723044180,-400.0,0.00011471,2]
[360296429,1746723044190,-400.0,0.00011471,2]
[360296430,1746723044200,-400.0,0.00011472,2]
[360296431,1746723044210,-153.23139584,0.00011472,2]
[360296432,1746723044220,-282.73107454,0.00011472,2]
[360296433,1746723044230,-400.0,0.00011472,2]
[360296434,1746723044241,-417.29,0.00011472,2]
[360296435,1746723044251,-400.0,0.00011472,2]
[360296436,1746723044261,-400.0,0.00011472,2]
[360296437,1746723044271,-500.0,0.00011473,2]
[360296438,1746723044284,-500.0,0.00011473,2]
[360296439,1746723044294,-265.33085839,0.00011473,2]
[360296440,1746723044304,-500.0,0.00011473,2]
[360296441,1746723044314,-500.0,0.00011473,2]
[360296442,1746723044325,-500.0,0.00011473,2]
[360296443,1746723044335,-179.23221658,0.00011473,2]
[360296444,1746723044345,-500.0,0.00011473,2]
[360296445,1746723044357,-500.0,0.00011473,2]
[360296446,1746723044367,-500.0,0.00011473,2]
[360296447,1746723044378,-500.0,0.00011473,2]
[360296448,1746723044387,-500.0,0.00011473,2]
[360296449,1746723044398,-500.0,0.00011473,2]
[360296450,1746723044407,-500.0,0.00011473,2]
[360296451,1746723044416,-500.0,0.00011473,2]
[360296452,1746723044426,-500.0,0.00011473,2]
[360296453,1746723044438,-616.41280303,0.00011495,2]
[360296454,1746723044449,-500.0,0.00011495,2]
[360296455,1746723044459,-648.76156699,0.00011495,2]
[360296456,1746723044468,-500.0,0.00011495,2]
[360296457,1746723044477,-223124.37576289,0.00011496,2]
[360296458,1746723044488,-400.0,0.00011497,2]
[360296459,1746723044498,-347.8847177,0.00011497,2]
[360296460,1746723044508,-400.0,0.00011497,2]
[360296461,1746723044517,-400.0,0.00011497,2]
[360296462,1746723044526,-400.0,0.00011497,2]
[360296463,1746723044537,-300.0,0.00011497,2]
[360296464,1746723044547,-389.70227789,0.00011497,2]
[360296465,1746723044557,-400.0,0.00011497,2]
[360296466,1746723044570,-400.0,0.00011497,2]
[360296467,1746723044580,-400.0,0.00011497,2]
[360296468,1746723044589,-400.0,0.00011497,2]
[360296469,1746723044599,-400.0,0.00011497,2]
[360296470,1746723044608,-400.0,0.00011497,2]
[360296471,1746723044617,-401.96524849,0.00011497,2]
[360296472,1746723044627,-400.0,0.00011497,2]
[360296473,1746723044636,-400.0,0.00011497,2]
[360296474,1746723044645,-400.0,0.00011497,2]
[360296475,1746723044655,-400.0,0.00011497,2]
[360296476,1746723044664,-400.0,0.00011497,2]
[360296477,1746723044673,-400.0,0.00011497,2]
[360296478,1746723044683,-400.0,0.00011497,2]
[360296479,1746723044692,-400.0,0.00011497,2]
[360296480,1746723044702,-400.0,0.00011497,2]
[360296481,1746723044711,-400.0,0.00011497,2]
[360296482,1746723044720,-400.0,0.00011497,2]
[360296483,1746723044730,-400.0,0.00011497,2]
[360296484,1746723044740,-400.0,0.00011497,2]
[360296485,1746723044750,-400.0,0.00011497,2]
[360296486,1746723044760,-400.0,0.00011497,2]
[360296487,1746723044769,-400.0,0.00011497,2]
[360296488,1746723044779,-400.0,0.00011497,2]
[360296489,1746723044788,-400.0,0.00011497,2]
[360296490,1746723044798,-400.0,0.00011497,2]
[360296491,1746723044808,-400.0,0.00011497,2]
[360296492,1746723044817,-400.0,0.00011497,2]
[360296493,1746723044827,-400.0,0.00011497,2]
[360296494,1746723044836,-400.0,0.00011497,2]
[360296495,1746723044846,-400.0,0.00011497,2]
[360296496,1746723044855,-400.0,0.00011497,2]
[360296497,1746723044865,-3185.23,0.00011497,2]
[360296498,1746723044877,-400.0,0.00011497,2]
[360296499,1746723044887,-400.0,0.00011497,2]
[360296500,1746723044898,-694.33,0.00011497,2]
[360296501,1746723044908,-400.0,0.00011497,2]
[360296502,1746723044919,-400.0,0.00011497,2]
[360296503,1746723044929,-400.0,0.00011497,2]
[360296504,1746723044939,-212.10144473,0.00011498,3]
[360296505,1746723044950,-400.0,0.00011498,2]
[360296506,1746723044961,-502.42782163,0.00011498,2]
[360296507,1746723044972,-400.0,0.00011498,2]
[360296508,1746723044982,-531.10544261,0.00011498,2]
[360296509,1746723044993,-400.0,0.00011498,2]
[360296510,1746723045005,-401.37070806,0.00011498,2]
[360296511,1746723045015,-400.0,0.00011498,2]
[360296512,1746723045027,-400.0,0.00011498,2]
[360296513,1746723045037,-400.0,0.00011498,2]
[360296514,1746723045047,-300.0,0.00011498,2]
[360296515,1746723045057,-400.0,0.00011498,2]
[360296516,1746723045066,-400.0,0.00011498,2]
[360296517,1746723045076,-400.0,0.00011498,2]
[360296518,1746723045086,-400.0,0.00011498,2]
[360296519,1746723045095,-400.0,0.00011498,2]
[360296520,1746723045105,-500.0,0.00011498,2]
[360296521,1746723045115,-423.97343875,0.00011498,2]
[360296522,1746723045124,-400.0,0.00011498,2]
[360296523,1746723045134,-400.0,0.00011498,2]
[360296524,1746723045143,-436.98,0.00011498,2]
[360296525,1746723045154,-503.62485783,0.00011498,2]
[360296526,1746723045163,-400.0,0.00011498,2]
[360296527,1746723045173,-400.0,0.00011498,2]
[360296528,1746723045184,-400.0,0.00011498,2]
[360296529,1746723045194,-400.0,0.00011498,2]
[360296530,1746723045204,-400.0,0.00011498,2]
[360296531,1746723045215,-400.0,0.00011498,2]
[360296532,1746723045225,-400.0,0.00011498,2]
[360296533,1746723045235,-400.0,0.00011498,2]
[360296534,1746723045245,-400.0,0.00011498,2]
[360296535,1746723045254,-400.0,0.00011498,2]
[360296536,1746723045263,-503.76752121,0.00011498,2]
[360296537,1746723045272,-411.8726672,0.00011498,2]
[360296538,1746723045283,-400.0,0.00011498,2]
[360296539,1746723045294,-400.0,0.00011498,2]
[360296540,1746723045303,-400.0,0.00011498,2]
[360296541,1746723045313,-400.0,0.00011498,2]
[360296542,1746723045323,-400.0,0.00011498,2]
[360296543,1746723045334,-400.0,0.00011498,2]
[360296544,1746723045345,-400.0,0.00011498,2]
[360296545,1746723045354,-400.0,0.00011498,2]
[360296546,1746723045364,-400.0,0.00011498,2]
[360296547,1746723045374,-400.0,0.00011498,2]
[360296548,1746723045383,-413.5222989,0.00011498,2]
[360296549,1746723045393,-400.0,0.00011498,2]
[360296550,1746723045402,-441.57817237,0.00011498,2]
[360296551,1746723045411,-401.87941263,0.00011498,2]
[360296552,1746723045420,-400.0,0.00011498,2]
[360296553,1746723045430,-400.0,0.00011498,2]
[360296554,1746723045439,-400.0,0.00011498,2]
[360296555,1746723045449,-400.0,0.00011498,2]
[360296556,1746723045458,-400.0,0.00011498,2]
[360296557,1746723045467,-500.0,0.00011498,2]
[360296558,1746723045477,-400.0,0.00011498,2]
[360296559,1746723045486,-400.0,0.00011498,2]
[360296560,1746723045496,-400.0,0.00011498,2]
[360296561,1746723045506,-400.0,0.00011498,2]
[360296562,1746723045515,-538.47,0.00011498,2]
[360296563,1746723045525,-400.0,0.00011498,2]
[360296564,1746723045535,-400.0,0.00011498,2]
[360296565,1746723045545,-151.0,0.00011498,2]
[360296566,1746723045554,-400.0,0.00011498,2]
[360296567,1746723045564,-400.0,0.00011498,2]
[360296568,1746723045573,-400.0,0.00011498,2]
[360296569,1746723045583,-400.0,0.00011498,2]
[360296570,1746723045595,-400.0,0.00011498,2]
[360296571,1746723045604,-151.0,0.00011498,2]
[360296572,1746723045614,-151.0,0.00011498,2]
[360296573,1746723045623,-151.0,0.00011498,2]
[360296574,1746723045633,-400.0,0.00011498,2]
[360296575,1746723045642,-400.0,0.00011498,2]
[360296576,1746723045651,-152.842715,0.00011498,2]
[360296577,1746723045661,-401.47199834,0.00011499,2]
[360296578,1746723045670,-400.0,0.00011499,2]
[360296579,1746723045680,-400.0,0.00011499,2]
[360296580,1746723045690,-401.17572262,0.00011499,2]
[360296581,1746723045700,-400.0,0.00011499,2]
[360296582,1746723045709,-400.0,0.00011499,2]
[360296583,1746723045719,-401.5324204,0.00011499,2]
[360296584,1746723045729,-401.46241826,0.00011499,2]
[360296585,1746723045739,-400.0,0.00011499,2]
[360296586,1746723045749,-273.00313652,0.00011499,2]
[360296587,1746723045759,-151.0,0.000115,2]
[360296588,1746723045769,-151.0,0.000115,2]
[360296589,1746723045779,-151.0,0.000115,2]
[360296590,1746723045789,-231.5651,0.000115,2]
[360296591,1746723045799,-151.0,0.000115,2]
[360296592,1746723045809,-400.0,0.00011501,2]
[360296593,1746723045819,-400.0,0.00011501,2]
[360296594,1746723045829,-400.0,0.00011501,2]
[360296595,1746723045840,-500.0,0.00011501,2]
[360296596,1746723045849,-303.65264388,0.00011501,2]
[360296597,1746723045859,-400.0,0.00011501,2]
[360296598,1746723045869,-400.0,0.00011501,2]
[360296599,1746723045879,-400.0,0.00011501,2]
[360296600,1746723045889,-400.0,0.00011501,2]
[360296601,1746723045899,-400.0,0.00011501,2]
[360296602,1746723046125,-400.0,0.00011501,2]
[360296604,1746723046134,-400.0,0.00011501,2]
[360296605,1746723046146,-400.0,0.00011501,2]
[360296606,1746723046155,-404.90554027,0.00011501,2]
[360296607,1746723046166,-400.0,0.00011501,2]
[360296608,1746723046175,-400.0,0.00011501,2]
[360296609,1746723046185,-400.0,0.00011501,2]
[360296610,1746723046196,-400.70991496,0.00011501,2]
[360296611,1746723046205,-400.0,0.00011501,2]
[360296612,1746723046215,-400.0,0.00011501,2]
[360296613,1746723046224,-400.0,0.00011501,2]
[360296614,1746723046234,-365.34957918,0.00011501,2]
[360296616,1746723046243,-400.0,0.00011501,2]
[360296617,1746723046253,-400.0,0.00011501,2]
[360296618,1746723046263,-400.0,0.00011501,2]
[360296619,1746723046275,-400.0,0.00011501,2]
[360296620,1746723046287,-400.0,0.00011501,2]
[360296621,1746723046296,-400.0,0.00011501,2]
[360296622,1746723046305,-400.0,0.00011501,2]
[360296623,1746723046315,-400.0,0.00011501,2]
[360296624,1746723046324,-400.0,0.00011501,2]